bitfinex/quotes_SOLUSD_20241218
["timestamp","ask_amount","ask_price","bid_price","bid_amount"]
[1734509255487,7.24365798,215.84,215.77,6.4095]
[1734509255679,7.24365798,215.84,215.77,13.65315798]
[1734509256063,7.93981908,215.83,215.77,6.4095]
[1734509256387,11.33237849,215.82,215.77,6.4095]
[1734509256771,11.33237849,215.8,215.73,11.33237849]
[1734509257279,11.33237849,215.8,215.73,12.02750505]
[1734509257481,11.33237849,215.81,215.73,12.02750505]
[1734509257863,11.33237849,215.79,215.72,8.0151]
[1734509258088,11.33237849,215.76,215.72,6.4095]
[1734509258293,11.33237849,215.75,215.68,11.33237849]
[1734509258882,11.33237849,215.75,215.68,12.02765549]
[1734509259096,11.33237849,215.76,215.69,11.33237849]
[1734509259787,11.33237849,215.77,215.7,11.33237849]
[1734509260493,11.33237849,215.77,215.68,0.695277]
[1734509260790,11.33237849,215.76,215.69,11.33237849]
[1734509260965,11.33237849,215.79,215.72,11.33237849]
[1734509261790,11.33237849,215.8,215.73,11.33237849]
[1734509262395,23.776884,215.85,215.75,11.33237849]
[1734509262585,11.33237849,215.82,215.75,11.33237849]
[1734509262895,11.33237849,215.82,215.74,11.33237849]
[1734509264079,11.33237849,215.82,215.7,20.82075856]
[1734509264281,11.33237849,215.82,215.74,11.33237849]
[1734509265325,11.33237849,215.79,215.73,0.12549]
[1734509265592,11.33237849,215.8,215.73,11.33237849]
[1734509266968,11.33237849,215.81,215.74,11.33237849]
[1734509268494,11.33237849,215.81,215.73,11.33237849]
[1734509268883,11.33237849,215.8,215.73,11.33237849]
[1734509269686,11.33237849,215.81,215.74,11.33237849]
[1734509269883,11.33237849,215.84,215.77,11.33237849]
[1734509270087,1.553,215.86,215.78,11.33237849]
[1734509270088,11.33237849,215.85,215.78,11.33237849]
[1734509270300,11.33237849,215.84,215.76,11.33237849]
[1734509270999,11.33237849,215.84,215.77,11.33237849]
[1734509271980,11.33237849,215.85,215.78,11.33237849]
[1734509272916,11.33237849,215.87,215.8,11.33237849]
[1734509273217,1.6159,215.91,215.8,11.33237849]
[1734509273218,11.33237849,215.88,215.8,11.33237849]
[1734509273508,11.33237849,215.87,215.8,11.33237849]
[1734509274309,11.33237849,215.84,215.77,11.33237849]
[1734509274495,11.33237849,215.83,215.76,12.02730149]
[1734509275508,11.33237849,215.84,215.77,11.33237849]
[1734509276499,7.25073978,215.84,215.77,7.25073978]
[1734509276797,0.6961611,215.9,215.77,7.25073978]
[1734509277116,7.25073978,215.85,215.78,7.25073978]
[1734509277801,7.25073978,215.86,215.79,7.94572839]
[1734509277996,7.25073978,215.86,215.79,7.25073978]
[1734509278516,7.25073978,215.83,215.76,9.16082933]
[1734509278742,7.25073978,215.8,215.76,1.91008955]
[1734509279017,7.25073978,215.78,215.71,7.25073978]
[1734509279208,7.25073978,215.78,215.71,9.16159487]
[1734509279993,7.25073978,215.77,215.71,1.91085509]
[1734509280194,7.25073978,215.78,215.71,9.16159487]
[1734509280397,1.617,215.83,215.73,7.25073978]
[1734509280605,7.25073978,215.8,215.73,7.25073978]
[1734509282312,2.3131611,215.83,215.73,11.33333096]
[1734509282512,11.33333096,215.84,215.77,11.33333096]
[1734509284926,11.33333096,215.82,215.75,0.12549]
[1734509285093,11.33333096,215.82,215.75,13.36965041]
[1734509285604,11.33333096,215.83,215.76,11.33333096]
[1734509286349,11.33333096,215.83,215.76,12.02835566]
[1734509286501,11.33333096,215.84,215.77,11.45882096]
[1734509286697,11.33333096,215.85,215.78,12.02828143]
[1734509287115,2.2670611,215.88,215.78,0.69495047]
[1734509287318,11.33333096,215.85,215.78,11.33333096]
[1734509288247,11.33333096,215.86,215.79,11.33333096]
[1734509288523,11.33333096,215.87,215.8,11.33333096]
[1734509290112,11.33333096,215.88,215.8,11.33333096]
[1734509290311,11.33333096,215.88,215.78,7.09766262]
[1734509290312,11.33333096,215.88,215.81,11.33333096]
[1734509290628,11.33333096,215.88,215.8,11.33333096]
[1734509291001,11.33333096,215.88,215.81,11.33333096]
[1734509291197,11.33333096,215.89,215.82,11.45882096]
[1734509291400,11.33333096,215.9,215.82,11.45882096]
[1734509291631,11.33333096,215.9,215.83,12.02812092]
[1734509291832,11.33333096,215.91,215.84,11.33333096]
[1734509292035,11.33333096,215.92,215.84,11.33333096]
[1734509292717,11.33333096,215.95,215.88,11.33333096]
[1734509293629,11.33333096,215.96,215.9,11.33333096]
[1734509293842,2.2777611,215.99,215.91,11.33333096]
[1734509293843,11.33333096,215.98,215.91,11.33333096]
[1734509295627,1.5816,215.99,215.92,12.02785886]
[1734509295628,12.91493096,215.99,215.92,12.02785886]
[1734509295927,11.33333096,215.99,215.92,12.02785886]
[1734509296630,11.33333096,215.99,215.91,11.33333096]
[1734509296938,11.33333096,215.98,215.91,11.33333096]
[1734509297225,11.33333096,215.97,215.9,32.02786143]
[1734509297634,11.33333096,215.98,215.91,11.45882096]
[1734509300660,11.33333096,216.02,215.95,11.33333096]
[1734509303115,11.89146646,216.0,215.93,12.02772278]
[1734509303517,0.5581355,216.0,215.94,11.33333096]
[1734509303716,0.5581355,216.0,215.94,12.02776998]
[1734509304710,0.5581355,216.0,215.94,11.33333096]
[1734509305440,0.5581355,216.0,215.97,11.33333096]
[1734509305625,0.5581355,216.0,215.98,12.0276767]
[1734509306136,0.5581355,216.0,215.98,7.93136834]
[1734509306958,0.5581355,216.0,215.99,7.2370226]
[1734509307139,3.55e-05,216.0,215.99,142.85677974]
[1734509307447,7.2370226,216.18,216.08,0.12549]
[1734509307642,1.5327,216.19,216.08,0.12549]
[1734509307643,1.5327,216.19,216.12,7.2370226]
[1734509307817,0.5581355,216.21,216.14,7.2370226]
[1734509307818,7.7951581,216.21,216.14,7.2370226]
[1734509308023,11.84862701,216.21,216.14,11.29049151]
[1734509308427,11.29049151,216.2,216.13,11.29049151]
[1734509309346,11.84862701,216.21,216.14,0.69382162]
[1734509309553,0.5581355,216.21,216.14,11.98431313]
[1734509309964,11.84862701,216.21,216.14,11.29049151]
[1734509310451,0.5581355,216.21,216.14,11.29049151]
[1734509310652,0.5581355,216.21,216.17,0.12549]
[1734509310827,0.5581355,216.21,216.17,11.29049151]
[1734509311334,0.5581355,216.21,216.17,0.12549]
[1734509312126,0.5581355,216.21,216.17,11.29049151]
[1734509313051,0.5581355,216.21,216.18,0.12549]
[1734509313946,0.5581355,216.21,216.18,11.29049151]
[1734509314123,0.5581355,216.21,216.14,20.0]
[1734509314124,0.5581355,216.21,216.2,11.41598151]
[1734509315220,0.5581355,216.21,216.2,27.32364394]
[1734509315456,0.5581355,216.21,216.2,27.19815394]
[1734509315758,0.5581355,216.21,216.2,9.43266243]
[1734509315928,0.5581355,216.21,216.16,0.69362888]
[1734509316257,0.5581355,216.21,216.15,9.43266243]
[1734509316446,0.5581355,216.21,216.18,11.29049151]
[1734509316646,0.5581355,216.21,216.19,11.29049151]
[1734509318433,0.5581355,216.21,216.17,11.29049151]
[1734509319051,0.5581355,216.21,216.2,11.29049151]
[1734509319553,0.5581355,216.21,216.18,11.29049151]
[1734509321345,0.5581355,216.21,216.16,0.69373222]
[1734509321556,0.5581355,216.21,216.19,11.29049151]
[1734509321779,0.5581355,216.21,216.2,11.29049151]
[1734509322903,0.5581355,216.21,216.18,20.69364526]
[1734509323070,0.5581355,216.21,216.2,11.29049151]
[1734509323974,0.5581355,216.21,216.18,0.69364526]
[1734509324184,0.5581355,216.21,216.15,9.43266243]
[1734509324346,0.5581355,216.21,216.16,11.29049151]
[1734509324772,0.5581355,216.21,216.17,11.29049151]
[1734509325854,0.5581355,216.21,216.16,11.29049151]
[1734509326592,0.5581355,216.21,216.15,9.43266243]
[1734509326748,0.5581355,216.21,216.16,11.29049151]
[1734509328251,0.5581355,216.21,216.15,20.72315394]
[1734509328756,0.5581355,216.21,216.14,6.4501]
[1734509328757,11.29049151,216.19,216.12,11.29049151]
[1734509328963,0.5581355,216.21,216.12,11.29049151]
[1734509328964,11.29049151,216.18,216.12,11.29049151]
[1734509329386,11.29049151,216.15,216.08,11.29049151]
[1734509329589,11.29049151,216.15,216.07,6.515]
[1734509329797,11.29049151,216.15,216.09,11.29049151]
[1734509330004,11.29049151,216.16,216.09,11.29049151]
[1734509330780,0.6961611,216.15,216.09,11.29049151]
[1734509331416,11.29049151,216.11,216.02,7.06483475]
[1734509331624,11.29049151,216.12,216.05,11.29049151]
[1734509331779,0.6961611,216.11,216.06,11.29049151]
[1734509332582,0.6961611,216.11,216.02,7.06483475]
[1734509332583,11.98665261,216.11,216.04,11.29049151]
[1734509333081,0.6961611,216.11,216.05,11.29049151]
[1734509334228,11.98665261,216.11,216.04,11.29049151]
[1734509334502,23.776884,216.16,216.06,11.29049151]
[1734509334680,11.29049151,216.11,216.04,11.29049151]
[1734509334882,11.98665261,216.1,216.03,11.29049151]
[1734509335435,11.29049151,216.07,216.0,11.29049151]
[1734509335612,11.29049151,216.07,216.01,11.29049151]
[1734509335921,11.29049151,216.05,215.98,11.29049151]
[1734509336425,12.95459151,216.07,216.0,11.29049151]
[1734509336922,0.6961611,216.06,216.0,11.29049151]
[1734509337844,11.98665261,216.06,215.99,11.29049151]
[1734509340337,12.95459151,216.07,216.0,11.29049151]
[1734509340534,11.29049151,216.09,216.02,11.29049151]
[1734509340842,0.6961611,216.1,215.99,0.69426046]
[1734509340843,11.29049151,216.1,216.03,11.29049151]
[1734509341053,11.29049151,216.07,216.0,11.29049151]
[1734509341210,11.98665261,216.06,215.99,11.29049151]
[1734509341609,11.98665261,216.06,216.0,1.89162772]
[1734509341807,11.29049151,216.06,215.99,11.29049151]
[1734509342222,11.29049151,216.05,215.98,0.12549]
[1734509342416,11.29049151,216.05,215.98,11.41598151]
[1734509343154,11.29049151,216.06,215.99,11.29049151]
[1734509344034,7.23610639,216.06,215.99,7.23610639]
[1734509344250,7.23610639,216.07,216.0,7.23610639]
[1734509345833,7.23610639,216.06,215.99,7.23610639]
[1734509346035,7.23610639,216.07,216.0,7.23610639]
[1734509347031,7.23610639,216.08,216.0,7.23610639]
[1734509347257,0.6961611,216.07,216.0,7.23610639]
[1734509347655,7.93226749,216.07,216.0,7.23610639]
[1734509348236,7.23610639,216.06,215.99,7.93038984]
[1734509348463,7.23610639,216.07,216.0,7.23610639]
[1734509348885,7.23610639,216.07,215.98,0.81980302]
[1734509348886,7.23610639,216.06,215.99,7.23610639]
[1734509350071,7.93226749,216.05,215.97,9.82434639]
[1734509350373,7.93226749,216.05,215.97,2.58824]
[1734509350579,7.23610639,216.04,215.97,2.58824]
[1734509350760,7.23610639,216.04,215.97,1.89391731]
[1734509350948,7.23610639,216.05,215.97,9.1300237]
[1734509351161,0.6961611,216.04,215.97,9.1300237]
[1734509351749,7.23610639,216.05,215.97,9.1300237]
[1734509351954,0.6961611,216.04,215.97,9.1300237]
[1734509353053,7.93226749,216.04,215.97,9.1300237]
[1734509353252,7.93226749,216.04,215.97,7.23610639]
[1734509354564,0.6961611,216.04,215.97,7.23610639]
[1734509356080,0.6961611,216.04,215.98,7.23610639]
[1734509356255,1.6372,216.13,216.03,7.23610639]
[1734509356460,8.87330639,216.13,216.06,7.23610639]
[1734509357378,7.93226749,216.12,216.05,7.23610639]
[1734509357578,7.23610639,216.11,216.04,7.23610639]
[1734509358078,7.93226749,216.12,216.04,7.23610639]
[1734509359076,7.93226749,216.12,216.05,7.23610639]
[1734509361575,0.6961611,216.12,216.04,7.23610639]
[1734509361971,7.23610639,216.11,216.04,7.23610639]
[1734509362371,7.23610639,216.11,216.03,7.93024789]
[1734509362687,7.23610639,216.04,215.96,6.5984]
[1734509362880,7.23610639,216.02,215.96,6.5984]
[1734509363276,7.23610639,216.03,215.96,13.83450639]
[1734509364796,7.23610639,216.02,215.96,6.5984]
[1734509364971,7.23610639,216.02,215.95,7.23610639]
[1734509365172,7.23610639,216.01,215.94,7.23610639]
[1734509365378,7.23610639,216.01,215.94,7.93055786]
[1734509366403,7.23610639,216.02,215.95,7.23610639]
[1734509368380,7.23610639,216.01,215.94,7.23610639]
[1734509370292,7.23610639,215.99,215.93,7.93055123]
[1734509370619,7.23610639,216.01,215.94,7.23610639]
[1734509371919,7.23610639,216.0,215.93,7.93055123]
[1734509373176,7.23610639,216.02,215.95,7.23610639]
[1734509373387,7.23610639,216.02,215.95,7.93052877]
[1734509374070,1.5153,216.05,215.96,0.12549]
[1734509374285,8.75140639,216.05,215.98,7.23610639]
[1734509374489,7.23610639,216.03,215.97,2.60370607]
[1734509375806,7.23610639,216.04,215.97,7.93053088]
[1734509376007,1.5153,216.05,215.97,7.93053088]
[1734509376204,7.23610639,216.04,215.97,7.93053088]
[1734509376520,7.23610639,216.04,215.97,9.84198983]
[1734509376713,7.23610639,216.04,215.97,7.93053088]
[1734509376917,7.23610639,216.05,215.98,9.14756774]
[1734509377114,7.23610639,216.05,215.99,1.91124185]
[1734509377616,7.23610639,216.05,215.98,7.93041069]
[1734509377795,2.2753611,216.1,215.91,141.1465]
[1734509377796,7.23610639,216.04,215.97,7.23610639]
[1734509378393,7.23610639,216.04,215.97,9.84120769]
[1734509378628,7.23610639,216.04,215.98,1.91075608]
[1734509378793,7.23610639,216.04,215.97,7.93045161]
[1734509379292,7.23610639,216.04,215.98,1.91075608]
[1734509379917,7.23610639,216.04,215.97,7.23610639]
[1734509380125,7.23610639,216.04,215.98,1.91118648]
[1734509380503,7.23610639,216.04,215.97,7.93044302]
[1734509380710,7.23610639,216.04,215.98,1.9113123]
[1734509382022,7.23610639,216.03,215.98,1.9113123]
[1734509382222,7.23610639,216.03,215.97,1.9113123]
[1734509382598,2.2753611,216.1,215.97,1.9113123]
[1734509382599,7.23610639,216.02,215.97,1.9113123]
[1734509382805,7.23610639,216.02,215.96,1.9113123]
[1734509383020,2.2753611,216.1,215.97,1.9113123]
[1734509383021,7.23610639,216.0,215.97,1.9113123]
[1734509383227,7.23610639,216.0,215.94,1.9113123]
[1734509383410,7.23610639,216.0,215.95,1.9113123]
[1734509383737,7.23610639,216.01,215.96,1.9113123]
[1734509383913,7.23610639,216.01,215.95,1.9113123]
[1734509384235,7.23610639,216.01,215.96,1.9113123]
[1734509384414,20.0,216.06,215.96,7.9305669]
[1734509384614,7.23610639,216.03,215.97,1.9113123]
[1734509384823,23.776884,216.07,215.98,7.23610639]
[1734509385031,7.23610639,216.05,215.98,7.93044485]
[1734509385423,7.23610639,216.03,215.96,1.9113123]
[1734509385608,7.23610639,216.03,215.97,1.9113123]
[1734509385811,7.23610639,216.04,215.97,9.14741869]
[1734509386007,7.23610639,216.04,215.98,1.9113123]
[1734509386222,7.23610639,216.04,215.97,7.23610639]
[1734509386404,7.23610639,216.04,215.97,9.14741869]
[1734509386607,7.23610639,216.04,215.97,7.23610639]
[1734509386830,7.23610639,216.04,215.98,1.91011236]
[1734509387924,7.23610639,216.04,215.97,7.23610639]
[1734509388120,7.23610639,216.02,215.97,1.91011236]
[1734509388326,7.23610639,216.03,215.96,9.14621875]
[1734509388630,7.23610639,216.03,215.97,1.91011236]
[1734509388835,7.23610639,216.04,215.97,1.91011236]
[1734509389032,7.93226749,216.04,215.97,1.91011236]
[1734509389214,7.23610639,216.04,215.97,9.14621875]
[1734509389537,7.23610639,216.04,215.98,1.91011236]
[1734509389735,7.23610639,216.04,215.97,7.23610639]
[1734509390035,7.23610639,216.04,215.97,9.14621875]
[1734509390215,7.23610639,216.04,215.98,1.91011236]
[1734509391335,0.6961611,216.06,215.99,1.91011236]
[1734509391517,7.23610639,216.05,215.99,1.91011236]
[1734509392131,7.23610639,216.05,215.94,20.0]
[1734509392132,1.5792,216.1,216.03,7.23610639]
[1734509392334,7.93226749,216.13,216.05,7.23610639]
[1734509392558,7.93226749,216.13,216.06,7.23610639]
[1734509392744,2.2354611,216.15,216.08,7.23610639]
[1734509392918,9.47156749,216.15,216.08,7.23610639]
[1734509393119,8.77540639,216.15,216.08,7.23610639]
[1734509393528,7.23610639,216.14,216.08,9.14145192]
[1734509393848,7.23610639,216.14,216.09,1.90534553]
[1734509394152,7.23610639,216.14,216.08,1.90534553]
[1734509394928,7.23610639,216.14,216.07,7.23610639]
[1734509395132,7.23610639,216.14,216.02,0.69402693]
[1734509395133,8.77540639,216.15,216.08,7.23610639]
[1734509395646,1.5393,216.15,216.08,7.23610639]
[1734509396163,0.6961611,216.18,216.09,6.1401]
[1734509396356,7.23610639,216.18,216.11,7.23610639]
[1734509396867,0.6961611,216.2,216.1,2.59581764]
[1734509396868,7.23610639,216.17,216.1,9.83192403]
[1734509397222,7.23610639,216.18,216.11,7.23610639]
[1734509399263,7.93226749,216.17,216.1,0.69398952]
[1734509399624,7.23610639,216.17,216.1,7.93009591]
[1734509402061,6.73610639,216.17,216.1,7.93009591]
[1734509404635,7.23610639,216.19,216.12,7.23610639]
[1734509405053,0.5581355,216.21,216.13,0.12549]
[1734509405255,0.5581355,216.21,216.16,7.23610639]
[1734509405437,0.5581355,216.21,216.16,7.92982789]
[1734509405933,0.5581355,216.21,216.16,7.23610639]
[1734509407059,0.5581355,216.21,216.16,7.9298256]
[1734509407854,0.5581355,216.21,216.16,7.23610639]
[1734509408255,0.5581355,216.21,216.14,0.81924344]
[1734509408553,7.79424189,216.21,216.13,27.23610639]
[1734509408751,7.79424189,216.21,216.14,7.92992061]
[1734509409561,7.79424189,216.21,216.13,20.0]
[1734509409734,7.79424189,216.21,216.13,27.23610639]
[1734509409938,0.5581355,216.21,216.14,7.23610639]
[1734509410148,0.5581355,216.21,216.15,7.23610639]
[1734509410372,7.23610639,216.2,216.13,27.92990897]
[1734509410850,7.79424189,216.21,216.14,7.23610639]
[1734509411252,0.5581355,216.21,216.15,7.23610639]
[1734509411462,0.5581355,216.21,216.15,7.92987156]
[1734509411767,0.5581355,216.21,216.15,0.69376517]
[1734509412067,0.5581355,216.21,216.14,7.23610639]
[1734509412246,0.5581355,216.21,216.15,7.23610639]
[1734509412446,0.5581355,216.21,216.16,7.23610639]
[1734509412948,0.5581355,216.21,216.16,7.92982636]
[1734509413773,0.5581355,216.21,216.18,7.23610639]
[1734509414090,0.5581355,216.21,216.17,27.23610639]
[1734509414243,0.5581355,216.21,216.17,20.0]
[1734509414570,0.5581355,216.21,216.17,27.23610639]
[1734509414772,0.5581355,216.21,216.18,7.23610639]
[1734509416264,0.45991907,216.21,216.18,7.23610639]
[1734509416471,0.45991907,216.21,216.19,7.23610639]
[1734509419167,0.45991907,216.21,216.2,7.23610639]
[1734509419472,0.45991907,216.21,216.19,7.23610639]
[1734509420267,0.45991907,216.21,216.2,0.12549]
[1734509420475,0.45991907,216.21,216.2,7.36159639]
[1734509423055,0.45991907,216.21,216.19,27.23610639]
[1734509423268,0.45991907,216.21,216.2,20.0]
[1734509423470,0.45991907,216.21,216.2,27.23610639]
[1734509425258,0.45991907,216.21,216.18,0.69366498]
[1734509425458,0.45991907,216.21,216.19,7.23610639]
[1734509427054,0.45991907,216.21,216.17,6.5303]
[1734509427265,0.45991907,216.21,216.19,7.23610639]
[1734509428661,0.45991907,216.21,216.2,7.23610639]
[1734509430462,0.40425097,216.21,216.2,7.23610639]
[1734509438877,0.40425097,216.21,216.18,1.89564189]
[1734509439078,0.40425097,216.21,216.18,9.13174828]
[1734509439393,0.40425097,216.21,216.19,9.13174828]
[1734509439574,0.40425097,216.21,216.2,9.13174828]
[1734509440366,0.40425097,216.21,216.2,1.89564189]
[1734509440688,0.40425097,216.21,216.2,7.23610639]
[1734509440893,0.40425097,216.21,216.2,1.89564189]
[1734509441190,0.40425097,216.21,216.2,9.13174828]
[1734509443194,0.40425097,216.21,216.2,1.89564189]
[1734509444601,0.40425097,216.21,216.2,9.13174828]
[1734509445098,0.40425097,216.21,216.2,1.89564189]
[1734509445286,0.40425097,216.21,216.2,9.13174828]
[1734509445615,0.40425097,216.21,216.2,7.23610639]
[1734509446176,0.40425097,216.21,216.2,1.90066365]
[1734509449676,0.40425097,216.21,216.2,9.26226004]
[1734509452090,0.40425097,216.21,216.2,7.36159639]
[1734509452282,0.40425097,216.21,216.2,9.26632798]
[1734509454623,0.40425097,216.21,216.2,2.03022159]
[1734509454784,0.40425097,216.21,216.2,9.26632798]
[1734509458018,0.40425097,216.21,216.2,2.03022159]
[1734509458187,0.40425097,216.21,216.2,9.26632798]
[1734509458381,0.40425097,216.21,216.2,16.72689041]
[1734509458576,0.40425097,216.21,216.2,7.58605243]
[1734509459001,0.40425097,216.21,216.2,9.4906121]
[1734509459206,0.40425097,216.21,216.2,16.72671849]
[1734509459385,0.0995929,216.21,216.2,16.72671849]
[1734509462415,0.0995929,216.21,216.2,9.4906121]
[1734509463189,0.0995929,216.21,216.2,16.72671849]
[1734509463994,0.0995929,216.21,216.2,16.72038798]
[1734509466425,0.0995929,216.21,216.2,9.48428159]
[1734509466633,0.0995929,216.21,216.2,16.72038798]
[1734509469637,0.0995929,216.21,216.2,9.48428159]
[1734509469819,0.0995929,216.21,216.2,16.72038798]
[1734509473732,0.02467141,216.21,216.2,15.51559317]
[1734509474035,0.02467141,216.21,216.2,17.41380474]
[1734509480642,0.02467141,216.21,216.2,29.82775231]
[1734509480843,0.02467141,216.21,216.2,29.95324231]
[1734509482343,0.02467141,216.21,216.2,2.71713592]
[1734509482530,0.02467141,216.21,216.2,9.95324231]
[1734509483219,0.02467141,216.21,216.2,2.71713592]
[1734509483423,0.02467141,216.21,216.2,9.95324231]
[1734509483649,0.02467141,216.21,216.2,8.05503074]
[1734509483950,0.02467141,216.21,216.2,9.95514899]
[1734509485230,0.00467141,216.21,216.2,9.95514899]
[1734509490225,0.00467141,216.21,216.2,8.05503074]
[1734509490550,0.00467141,216.21,216.2,9.95248023]
[1734509491250,0.00467141,216.21,216.2,47.33175388]
[1734509493042,0.00467141,216.21,216.2,16.19327349]
[1734509493236,0.00467141,216.21,216.2,23.42937988]
[1734509493647,0.00467141,216.21,216.2,10.41182487]
[1734509493835,0.00467141,216.21,216.2,17.64793126]
[1734509494032,1.5742,216.33,216.21,0.12549]
[1734509494344,8.81030639,216.33,216.27,7.23610639]
[1734509494553,8.81030639,216.33,216.28,1.89760087]
[1734509494858,7.23610639,216.32,216.28,1.89760087]
[1734509495155,7.23610639,216.32,216.27,1.89760087]
[1734509495335,8.81030639,216.33,216.28,1.89760087]
[1734509495536,8.81030639,216.33,216.27,1.89760087]
[1734509495751,1.5742,216.33,216.28,1.89760087]
[1734509496245,1.5742,216.33,216.29,1.89760087]
[1734509496448,1.5742,216.33,216.28,1.89760087]
[1734509496974,1.5742,216.33,216.27,7.23610639]
[1734509497142,1.5742,216.33,216.28,1.89717196]
[1734509497341,1.5742,216.33,216.29,1.89717196]
[1734509497557,1.5742,216.33,216.28,1.89717196]
[1734509497855,1.5742,216.33,216.29,1.89717196]
[1734509498043,1.5742,216.33,216.28,1.89717196]
[1734509498252,1.5742,216.33,216.29,1.89717196]
[1734509498562,1.5742,216.33,216.28,9.13327835]
[1734509498862,1.5742,216.33,216.29,1.89717196]
[1734509499463,1.5742,216.33,216.29,9.13327835]
[1734509499765,1.5742,216.33,216.29,7.23610639]
[1734509500167,1.5742,216.33,216.28,7.23610639]
[1734509500344,1.5742,216.33,216.29,1.8968296]
[1734509500664,1.5742,216.33,216.29,9.13293599]
[1734509500856,1.5742,216.33,216.29,7.23610639]
[1734509501436,0.6961611,216.36,216.32,7.23610639]
[1734509501743,1.6463,216.39,216.35,7.23610639]
[1734509501948,1.6463,216.39,216.36,7.23610639]
[1734509502341,1.6463,216.39,216.36,0.12549]
[1734509502563,1.6463,216.39,216.37,7.23610639]
[1734509502756,28.84639019,216.41,216.37,7.23610639]
[1734509504364,36.08249658,216.41,216.33,20.0]
[1734509504552,36.08249658,216.41,216.34,9.12806914]
[1734509504858,22.35546258,216.4,216.34,1.89196275]
[1734509505064,21.65930148,216.4,216.34,7.23610639]
[1734509505370,14.42319509,216.4,216.34,7.23610639]
[1734509505689,22.35546258,216.4,216.34,7.23610639]
[1734509505865,8.87770639,216.39,216.33,7.23610639]
[1734509506059,8.87770639,216.39,216.32,9.12806914]
[1734509506366,8.87770639,216.39,216.32,7.34806914]
[1734509506544,14.44770393,216.38,216.32,7.23610639]
[1734509506869,7.23610639,216.38,216.32,7.23610639]
[1734509507445,8.87770639,216.39,216.33,7.23610639]
[1734509508053,7.93226749,216.38,216.32,7.23610639]
[1734509508766,7.23610639,216.37,216.31,7.23610639]
[1734509509668,7.23610639,216.36,216.26,0.69333718]
[1734509509869,7.23610639,216.33,216.24,6.90255244]
[1734509510068,7.23610639,216.33,216.27,7.23610639]
[1734509511058,7.93226749,216.32,216.26,7.23610639]
[1734509511390,7.23610639,216.3,216.2,2.76360196]
[1734509511663,7.23610639,216.3,216.19,0.69349759]
[1734509511664,7.23610639,216.31,216.25,7.23610639]
[1734509511853,7.23610639,216.32,216.21,0.69356102]
[1734509512057,0.6961611,216.31,216.25,7.23610639]
[1734509515147,23.776884,216.34,216.25,7.23610639]
[1734509515351,23.776884,216.34,216.19,3.4620817]
[1734509515352,7.93226749,216.34,216.27,7.23610639]
[1734509515552,7.23610639,216.34,216.27,7.23610639]
[1734509516483,7.23610639,216.34,216.28,7.23610639]
[1734509516789,0.6961611,216.38,216.32,7.23610639]
[1734509516985,1.6416,216.39,216.33,7.23610639]
[1734509517215,0.6961611,216.38,216.3,0.12549]
[1734509517487,0.6961611,216.38,216.33,7.23610639]
[1734509517655,1.6416,216.39,216.35,7.23610639]
[1734509517856,1.6416,216.39,216.33,7.23610639]
[1734509518059,9.57386749,216.39,216.32,7.23610639]
[1734509519391,2.3377611,216.39,216.33,7.23610639]
[1734509523296,2.3377611,216.39,216.34,7.23610639]
[1734509523487,1.6416,216.39,216.34,7.23610639]
[1734509524194,6.7909355,216.43,216.37,7.23610639]
[1734509524195,0.5581355,216.43,216.37,7.23610639]
[1734509526180,7.79424189,216.43,216.36,7.23610639]
[1734509526379,7.23610639,216.4,216.31,20.0]
[1734509526583,0.6961611,216.39,216.33,7.23610639]
[1734509529979,7.93226749,216.39,216.33,7.23610639]
[1734509530389,7.93226749,216.39,216.3,0.12549]
[1734509530715,7.93226749,216.39,216.33,7.23610639]
[1734509531402,7.93226749,216.39,216.3,0.12549]
[1734509531602,0.6961611,216.39,216.3,0.12549]
[1734509531820,7.23610639,216.37,216.3,0.12549]
[1734509532028,23.776884,216.41,216.31,7.23610639]
[1734509532319,7.23610639,216.38,216.31,7.23610639]
[1734509532629,7.93226749,216.37,216.3,0.12549]
[1734509532839,7.23610639,216.37,216.31,7.23610639]
[1734509534001,7.23610639,216.36,216.29,0.69327662]
[1734509534219,7.23610639,216.34,216.28,7.23610639]
[1734509534420,7.23610639,216.34,216.27,7.23610639]
[1734509534620,0.6961611,216.33,216.27,7.23610639]
[1734509534917,7.93226749,216.33,216.27,7.23610639]
[1734509535117,7.23610639,216.32,216.25,7.23610639]
[1734509536524,7.23610639,216.33,216.26,7.23610639]
[1734509536718,0.6961611,216.32,216.26,7.23610639]
[1734509537615,1.6258,216.36,216.31,7.23610639]
[1734509537804,1.6258,216.36,216.32,7.23610639]
[1734509541421,1.6258,216.36,216.31,7.23610639]
[1734509541642,0.6961611,216.38,216.33,7.23610639]
[1734509542332,7.93226749,216.38,216.31,7.23610639]
[1734509542502,7.93226749,216.38,216.31,9.1650329]
[1734509542703,0.6961611,216.38,216.32,7.23610639]
[1734509542925,1.5333,216.41,216.34,7.23610639]
[1734509542926,0.6961611,216.4,216.34,7.23610639]
[1734509543510,0.6961611,216.4,216.34,9.16337486]
[1734509543710,0.6961611,216.4,216.35,1.92726847]
[1734509544529,7.93226749,216.4,216.33,7.23610639]
[1734509544733,7.93226749,216.4,216.34,1.92726847]